fUSD/lending_fUSD_20240720
["ID","MTS","AMOUNT","RATE_DAILY","PERIOD"]
[332696583,1721452332001,-1034.3,0.0003452,14]
[332696584,1721452332011,-500.0,0.0003452,14]
[332696585,1721452332020,-959.71,0.0003452,14]
[332696586,1721452332031,-500.0,0.0003452,14]
[332696587,1721452332041,-591.51,0.0003452,14]
[332696588,1721452332051,-500.0,0.0003452,14]
[332696589,1721452332061,-953.56,0.0003452,14]
[332696590,1721452332071,-500.0,0.0003452,14]
[332696591,1721452332081,-2033.65,0.0003452,14]
[332696592,1721452332090,-809.72,0.0003452,14]
[332696593,1721452332100,-500.0,0.0003452,14]
[332696594,1721452332110,-1937.31,0.0003452,14]
[332696595,1721452332120,-626.01,0.0003452,14]
[332696596,1721452332130,-694.93,0.0003452,14]
[332696597,1721452332140,-500.0,0.0003452,14]
[332696598,1721452332150,-813.05,0.0003452,14]
[332696599,1721452332160,-1259.04,0.0003452,14]
[332696600,1721452332169,-1232.51,0.0003452,14]
[332696601,1721452332179,-561.68,0.0003452,14]
[332696602,1721452332188,-500.0,0.0003452,14]
[332696603,1721452332198,-1006.17,0.0003452,14]
[332696604,1721452332208,-500.0,0.0003452,14]
[332696605,1721452332218,-500.0,0.0003452,14]
[332696606,1721452332227,-574.60576419,0.0003452,14]
[332696607,1721452332237,-884.79,0.0003452,14]
[332696608,1721452332247,-500.0,0.0003452,14]
[332696609,1721452332257,-603.05,0.0003452,14]
[332696610,1721452332267,-1733.33,0.0003452,14]
[332696611,1721452332277,-2149.91,0.0003452,14]
[332696612,1721452332288,-1300.74,0.0003452,14]
[332696613,1721452332299,-1111.25,0.0003452,14]
[332696614,1721452332309,-500.0,0.0003452,14]
[332696615,1721452332319,-581.97708199,0.0003452,14]
[332696616,1721452332330,-500.0,0.0003452,14]
[332696617,1721452332340,-500.0,0.0003452,14]
[332696618,1721452332350,-500.0,0.0003452,14]
[332696619,1721452332360,-500.0,0.0003452,14]
[332696620,1721452332370,-500.0,0.0003452,14]
[332696621,1721452332382,-563.93,0.0003452,14]
[332696622,1721452332394,-1238.04,0.0003452,14]
[332696623,1721452332404,-1017.18,0.0003452,14]
[332696624,1721452332415,-536.29170985,0.0003452,14]
[332696625,1721452332424,-512.17,0.0003452,14]
[332696626,1721452332434,-647.92,0.0003452,14]
[332696627,1721452332444,-500.0,0.0003452,14]
[332696628,1721452332454,-692.06,0.0003452,14]
[332696629,1721452332464,-1357.97,0.0003452,14]
[332696630,1721452332474,-500.0,0.0003452,14]
[332696631,1721452332484,-763.87,0.0003452,14]
[332696632,1721452332494,-500.0,0.0003452,14]
[332696633,1721452332504,-637.96,0.0003452,14]
[332696634,1721452332515,-572.48,0.0003452,14]
[332696635,1721452332525,-1046.36,0.0003452,14]
[332696636,1721452332535,-691.25,0.0003452,14]
[332696637,1721452332546,-500.0,0.0003452,14]
[332696638,1721452332556,-1816.66,0.0003452,14]
[332696639,1721452332565,-1709.3,0.0003452,14]
[332696640,1721452332575,-937.77,0.0003452,14]
[332696641,1721452332586,-500.0,0.0003452,14]
[332696642,1721452332596,-2311.96,0.0003452,14]
[332696643,1721452332609,-500.0,0.0003452,14]
[332696644,1721452332618,-500.0,0.0003452,14]
[332696645,1721452332628,-977.58,0.0003452,14]
[332696646,1721452332638,-500.0,0.0003452,14]
[332696647,1721452332649,-889.94,0.0003452,14]
[332696648,1721452332659,-500.0,0.0003452,14]
[332696649,1721452332669,-500.0,0.0003452,14]
[332696650,1721452332682,-520.15228324,0.0003452,14]
[332696651,1721452332693,-712.12,0.0003452,14]
[332696652,1721452332703,-889.44,0.0003452,14]
[332696653,1721452332713,-528.48,0.0003452,14]
[332696654,1721452332722,-1658.13,0.0003452,14]
[332696655,1721452332733,-2067.19,0.0003452,14]
[332696656,1721452332743,-855.84,0.0003452,2]
[332696657,1721452332753,-500.0,0.0003452,14]
[332696658,1721452332763,-1063.94,0.0003452,14]
[332696659,1721452332773,-500.0,0.0003452,14]
[332696660,1721452332783,-515.10877158,0.0003452,14]
[332696661,1721452332794,-1046.5,0.0003452,14]
[332696662,1721452332804,-500.0,0.0003452,14]
[332696663,1721452332814,-1310.39,0.0003452,14]
[332696664,1721452332824,-1401.11,0.0003452,14]
[332696665,1721452332835,-500.0,0.0003452,14]
[332696666,1721452332845,-500.0,0.0003452,14]
[332696667,1721452332855,-1116.68,0.0003452,14]
[332696668,1721452332865,-500.0,0.0003452,14]
[332696669,1721452332875,-721.49,0.0003452,14]
[332696671,1721452333154,-1092.3,0.0003452,14]
[332696672,1721452333165,-500.0,0.0003452,14]
[332696673,1721452333175,-500.0,0.0003452,14]
[332696674,1721452333185,-1007.82,0.0003452,14]
[332696675,1721452333195,-886.3,0.0003452,14]
[332696676,1721452333205,-964.81,0.0003452,14]
[332696677,1721452333215,-730.04,0.0003452,14]
[332696678,1721452333224,-500.0,0.0003452,14]
[332696679,1721452333234,-1245.07,0.0003452,14]
[332696680,1721452333244,-500.0,0.0003452,14]
[332696681,1721452333254,-500.0,0.0003452,14]
[332696682,1721452333263,-500.0,0.0003452,14]
[332696683,1721452333273,-1347.55,0.0003452,14]
[332696684,1721452333283,-2110.3,0.0003452,14]
[332696685,1721452333292,-1060.23,0.0003452,14]
[332696686,1721452333302,-500.0,0.0003452,14]
[332696687,1721452333311,-500.0,0.0003452,14]
[332696688,1721452333321,-500.0,0.0003452,14]
[332696689,1721452333331,-676.88,0.0003452,14]
[332696690,1721452333341,-857.78,0.0003452,14]
[332696691,1721452333350,-1009.09,0.0003452,14]
[332696692,1721452333360,-542.55,0.0003452,14]
[332696693,1721452333369,-500.0,0.0003452,14]
[332696694,1721452333380,-574.29,0.0003452,14]
[332696695,1721452333390,-1463.03,0.0003452,14]
[332696696,1721452333399,-500.0,0.0003452,14]
[332696697,1721452333408,-500.0,0.0003452,14]
[332696698,1721452333418,-1627.07,0.0003452,14]
[332696699,1721452333427,-618.39,0.0003452,14]
[332696700,1721452333437,-500.0,0.0003452,14]
[332696701,1721452333447,-1578.41,0.0003452,14]
[332696702,1721452333456,-500.0,0.0003452,14]
[332696703,1721452333466,-504.70704343,0.0003452,14]
[332696704,1721452333476,-769.81,0.0003452,14]
[332696705,1721452333486,-500.0,0.0003452,14]
[332696706,1721452333496,-1081.1,0.0003452,14]
[332696707,1721452333506,-2025.51,0.0003452,14]
[332696708,1721452333515,-500.0,0.0003452,14]
[332696709,1721452333525,-1022.1,0.0003452,14]
[332696710,1721452333534,-745.97,0.0003452,14]
[332696711,1721452333544,-1297.98,0.0003452,14]
[332696712,1721452333553,-683.77,0.0003452,14]
[332696713,1721452333563,-675.93,0.0003452,14]
[332696714,1721452333573,-518.93968363,0.0003452,14]
[332696715,1721452333583,-4023.17,0.0003452,14]
[332696716,1721452333593,-1158.55,0.0003452,14]
[332696717,1721452333607,-501.61,0.0003452,14]
[332696718,1721452333616,-500.0,0.0003452,14]
[332696719,1721452333626,-500.0,0.0003452,14]
[332696720,1721452333635,-1096.49,0.0003452,14]
[332696721,1721452333646,-500.0,0.0003452,14]
[332696722,1721452333656,-500.0,0.0003452,14]
[332696723,1721452333665,-500.0,0.0003452,14]
[332696724,1721452333677,-500.0,0.0003452,14]
[332696725,1721452333687,-597.24,0.0003452,14]
[332696726,1721452333697,-500.0,0.0003452,14]
[332696727,1721452333709,-500.0,0.0003452,14]
[332696728,1721452333720,-1126.75,0.0003452,14]
[332696729,1721452333729,-225.12743473,0.0003452,14]
[332696730,1721452333740,-500.0,0.0003452,14]
[332696731,1721452333750,-500.0,0.0003452,14]
[332696732,1721452333761,-500.0,0.0003452,14]
[332696733,1721452333772,-500.0,0.0003452,14]
[332696734,1721452333781,-500.0,0.0003452,14]
[332696735,1721452333790,-500.0,0.0003452,14]
[332696736,1721452333801,-500.0,0.0003452,14]
[332696737,1721452333811,-889.12,0.0003452,14]
[332696738,1721452333821,-500.0,0.0003452,14]
[332696739,1721452333832,-500.0,0.0003452,14]
[332696740,1721452333843,-1138.51,0.0003452,14]
[332696741,1721452333852,-1961.02,0.0003452,14]
[332696742,1721452333862,-331.4,0.0003452,14]
[332696743,1721452333872,-500.0,0.0003452,14]
[332696744,1721452333883,-500.0,0.0003452,14]
[332696745,1721452333892,-512.4166944,0.0003452,14]
[332696746,1721452333902,-500.0,0.0003452,14]
[332696747,1721452333912,-448.13,0.0003452,14]
[332696748,1721452333922,-2681.2,0.0003452,14]
[332696749,1721452333932,-504.37,0.0003452,14]
[332696750,1721452333941,-539.61,0.0003452,14]
[332696751,1721452333951,-504.63,0.0003452,14]
[332696752,1721452333966,-500.0,0.0003452,14]
[332696753,1721452333977,-500.0,0.0003452,14]
[332696754,1721452333987,-500.0,0.0003452,14]
[332696755,1721452333997,-504.39577759,0.0003452,14]
[332696756,1721452334007,-500.0,0.0003452,14]
[332696757,1721452334018,-1822.16,0.0003452,14]
[332696758,1721452334029,-534.1,0.0003452,14]
[332696759,1721452334040,-1103.03,0.0003452,14]
[332696760,1721452334051,-500.0,0.0003452,14]
[332696761,1721452334060,-500.0,0.0003452,14]
[332696762,1721452334071,-500.0,0.0003452,14]
[332696763,1721452334081,-500.0,0.0003452,14]
[332696764,1721452334091,-515.51,0.0003452,14]
[332696765,1721452334102,-509.89987766,0.0003452,14]
[332696766,1721452334113,-500.0,0.0003452,14]
[332696767,1721452334124,-571.74758322,0.0003452,14]
[332696768,1721452334137,-1292.47,0.0003452,14]
[332696769,1721452334147,-1052.37,0.0003452,14]
[332696770,1721452334158,-174.05832817,0.0003452,14]
[332696771,1721452334169,-4050.58,0.0003452,14]
[332696772,1721452334178,-500.0,0.0003452,14]
[332696773,1721452334189,-500.0,0.0003452,14]
[332696774,1721452334199,-500.0,0.0003452,14]
[332696775,1721452334210,-500.0,0.0003452,14]
[332696776,1721452334220,-3121.76,0.0003452,14]
[332696777,1721452334230,-2985.13,0.0003452,14]
[332696778,1721452334241,-500.0,0.0003452,14]
[332696779,1721452334252,-1811.8,0.0003452,14]
[332696780,1721452334262,-500.0,0.0003452,14]
[332696781,1721452334273,-500.0,0.0003452,14]
[332696782,1721452334283,-500.0,0.0003452,14]
[332696783,1721452334294,-500.0,0.0003452,14]
[332696784,1721452334304,-850.99,0.0003452,14]
[332696785,1721452334314,-5805.68,0.0003452,14]
[332696786,1721452334325,-500.0,0.0003452,14]
[332696787,1721452334336,-675.1,0.0003452,14]
[332696788,1721452334346,-3021.16,0.0003452,14]
[332696789,1721452334356,-1654.29,0.0003452,14]
[332696790,1721452334366,-1244.24,0.0003452,14]
[332696791,1721452334377,-1743.54,0.0003452,14]
[332696792,1721452334387,-500.0,0.0003452,14]
[332696793,1721452334396,-1175.27,0.0003452,14]
[332696794,1721452334407,-636.39,0.0003452,14]
[332696795,1721452334417,-500.0,0.0003452,14]
[332696796,1721452334428,-2447.5,0.0003452,14]
[332696797,1721452334438,-2718.0,0.0003452,14]
[332696798,1721452334450,-6951.69,0.0003452,14]
[332696799,1721452334461,-500.0,0.0003452,14]
[332696800,1721452334472,-500.0,0.0003452,14]
[332696801,1721452334482,-500.0,0.0003452,14]
[332696802,1721452334492,-500.0,0.0003452,14]
[332696803,1721452334503,-908.8,0.0003452,14]
[332696804,1721452334514,-1800.06,0.0003452,14]
[332696805,1721452334524,-975.93,0.0003452,14]
[332696806,1721452334534,-1738.49,0.0003452,14]
[332696807,1721452334544,-5201.38,0.0003452,14]
[332696808,1721452334554,-500.0,0.0003452,14]
[332696809,1721452334564,-714.27,0.0003452,14]
[332696810,1721452334574,-500.0,0.0003452,14]
[332696811,1721452334584,-9104.64,0.0003452,14]
[332696812,1721452334595,-504.41,0.0003452,14]
[332696813,1721452334609,-500.0,0.0003452,2]
[332696814,1721452334619,-500.0,0.0003452,14]
[332696815,1721452334629,-500.0,0.0003452,14]
[332696816,1721452334641,-500.0,0.0003452,14]
[332696817,1721452334651,-500.0,0.0003452,14]
[332696818,1721452334661,-500.0,0.0003452,14]
[332696819,1721452334671,-1466.62,0.0003452,14]
[332696820,1721452334682,-5642.97,0.0003452,14]
[332696821,1721452334692,-1754.34,0.0003452,14]
[332696822,1721452334702,-1092.71,0.0003452,14]
[332696823,1721452334712,-1704.32,0.0003452,14]
[332696824,1721452334722,-500.0,0.0003452,14]
[332696825,1721452334732,-500.0,0.0003452,14]
[332696826,1721452334742,-561.50360981,0.0003452,14]
[332696827,1721452334753,-500.0,0.0003452,14]
[332696828,1721452334763,-4325.23,0.0003452,14]
[332696829,1721452334772,-738.58,0.0003452,14]
[332696830,1721452334782,-814.05,0.0003452,14]
[332696831,1721452334792,-731.2,0.0003452,14]
[332696832,1721452334802,-1471.14,0.0003452,14]
[332696833,1721452334812,-3510.37,0.0003452,14]
[332696834,1721452334821,-1229.29,0.0003452,14]
[332696835,1721452334831,-500.0,0.0003452,14]
[332696836,1721452334842,-1164.69,0.0003452,14]
[332696837,1721452334852,-3419.7,0.0003452,14]
[332696838,1721452334862,-795.79,0.0003452,14]
[332696839,1721452334871,-1370.44,0.0003452,14]
[332696840,1721452334881,-4935.97,0.0003452,14]
[332696841,1721452334891,-1990.24969984,0.0003452,14]
[332696842,1721452334926,-3528.53030016,0.0003452,14]
[332696843,1721452334935,-500.0,0.0003452,14]
[332696844,1721452334944,-507.2466582,0.0003452,14]
[332696845,1721452334954,-855.69,0.0003452,14]
[332696846,1721452334964,-1428.43,0.0003452,14]
[332696847,1721452334973,-1414.58,0.0003452,14]
[332696848,1721452334983,-500.0,0.0003452,14]
[332696849,1721452334992,-1661.1,0.0003452,14]
[332696850,1721452335002,-1024.94,0.0003452,14]
[332696851,1721452335012,-1024.94,0.0003452,14]
[332696852,1721452335022,-500.0,0.0003452,14]
[332696853,1721452335033,-867.72,0.0003452,14]
[332696854,1721452335043,-500.0,0.0003452,14]
[332696855,1721452335055,-5718.78,0.0003452,14]
[332696856,1721452335067,-601.33,0.0003452,14]
[332696857,1721452335077,-1256.52,0.0003452,14]
[332696858,1721452335089,-2364.4,0.0003452,14]
[332696859,1721452335101,-1122.57,0.0003452,14]
[332696860,1721452335112,-500.0,0.0003452,14]
[332696861,1721452335121,-3777.43,0.0003452,14]
[332696862,1721452335133,-1287.89,0.0003452,14]
[332696863,1721452335142,-500.0,0.0003452,14]
[332696864,1721452335152,-2909.95,0.0003452,14]
[332696865,1721452335164,-500.0,0.0003452,14]
[332696866,1721452335175,-500.0,0.0003452,14]
[332696867,1721452335186,-519.36,0.0003452,14]
[332696868,1721452335198,-500.0,0.0003452,14]
[332696869,1721452335208,-7748.76,0.0003452,14]
[332696870,1721452335218,-3248.84,0.0003452,14]
[332696871,1721452335228,-2623.21,0.0003452,14]
[332696872,1721452335238,-3223.85,0.0003452,14]
[332696873,1721452335248,-753.17,0.0003452,14]
[332696874,1721452335259,-508.28172625,0.0003452,14]
[332696875,1721452335270,-1040.19,0.0003452,14]
[332696876,1721452335280,-1843.55,0.0003452,14]
[332696877,1721452335290,-1242.20002759,0.0003452,14]
[332696878,1721452335317,-1323.72601942,0.00013989,2]
[332696879,1721452335326,-1968.21002332,0.0003452,14]
[332696880,1721452335338,-1882.19994909,0.0003452,14]
[332696881,1721452335348,-500.0,0.0003452,14]
[332696882,1721452335358,-985.71,0.0003452,14]
[332696883,1721452335367,-2260.04,0.0003452,14]
[332696884,1721452335377,-500.0,0.0003452,14]
[332696885,1721452335387,-500.0,0.0003452,14]
[332696886,1721452335397,-1121.01,0.0003452,14]
[332696887,1721452335408,-1503.86,0.0003452,14]
[332696888,1721452335418,-1524.14,0.0003452,14]
[332696889,1721452335427,-500.0,0.0003452,14]
[332696890,1721452335437,-690.64,0.0003452,14]
[332696891,1721452335447,-3751.65,0.0003452,14]
[332696892,1721452335458,-1947.42,0.0003452,14]
[332696893,1721452335468,-500.0,0.0003452,14]
[332696894,1721452335479,-1504.54,0.0003452,14]
[332696895,1721452335490,-950.08,0.0003452,14]
[332696896,1721452335500,-500.0,0.0003452,14]
[332696897,1721452335511,-2533.37,0.0003452,14]
[332696898,1721452335521,-500.0,0.0003452,14]
[332696899,1721452335530,-896.76,0.0003452,14]
[332696900,1721452335540,-500.0,0.0003452,14]
[332696901,1721452335550,-552.56,0.0003452,14]
[332696902,1721452335560,-14489.0,0.0003452,14]
[332696903,1721452335570,-1465.63,0.0003452,14]
[332696904,1721452335581,-698.57,0.0003452,14]
[332696905,1721452335591,-2480.15,0.0003452,14]
[332696906,1721452335722,-696.41,0.0003452,14]
[332696907,1721452335732,-500.0,0.0003452,14]
[332696908,1721452335741,-1578.51005091,0.0003452,14]
[332696909,1721452335753,-525.88994909,0.0003452,14]
[332696910,1721452335763,-287.89804418,0.0003452,14]
[332696911,1721452335774,-2790.94195582,0.0003452,14]
[332696912,1721452335783,-500.0,0.0003452,14]
[332696913,1721452335792,-703.93,0.0003452,14]
[332696914,1721452335802,-1047.59,0.0003452,14]
[332696915,1721452335811,-500.0,0.0003452,14]
[332696916,1721452335820,-3181.26,0.0003452,14]
[332696917,1721452335830,-78.52081618,0.0003452,14]
[332696918,1721452335887,-421.47918382,0.0003452,14]
[332696919,1721452335896,-2883.72120144,0.0003452,14]
[332696920,1721452335908,-397.03879856,0.0003452,14]
[332696921,1721452335917,-1965.40143044,0.0003452,14]
[332696922,1721452335928,-647.25856956,0.0003452,14]
[332696923,1721452335938,-440.59892602,0.0003452,14]
[332696955,1721453432283,-447.8963,0.000139,2]
[332696956,1721453432294,-959.9484,0.000139,2]
[332696958,1721453432304,-300.0,0.00014989,2]
[332696960,1721453432313,-5913.78773577,0.0001499,2]
[332696963,1721453432336,-1007.86,0.0001499,2]
[332696964,1721453432460,-1127.54085271,0.0001499,2]
[332696965,1721453432479,-2407.636,0.0001499,2]
[332696966,1721453432490,-1661.1859856,0.0001499,2]
[332696967,1721453432502,-3749.88886232,0.0001499,2]
[332696968,1721453432511,-16616.53374001,0.0001499,2]
[332697005,1721453438396,-3069.57775378,0.000138,2]
[332697006,1721453438406,-15305.25814319,0.0001499,2]
[332697007,1721453438480,-376.75,0.0001499,2]
[332697034,1721453440379,-284.69522296,0.0001499,2]
[332697035,1721453440390,-3537.73874138,0.0001499,2]
[332697036,1721453440401,-1275.2531778,0.0001499,2]
[332697037,1721453440413,-347.833572,0.0001499,2]
[332697038,1721453440431,-398.62710039,0.0001499,2]
[332697039,1721453440474,-29167.54549668,0.0001499,2]
[332697040,1721453440555,-1700.52499995,0.0001499,2]
[332697041,1721453440636,-650.0,0.0001499,2]
[332697042,1721453440782,-145143.09572198,0.0001499,2]
[332697043,1721453440794,-1700.38461666,0.0001499,2]
[332697044,1721453440804,-182.14,0.0001499,2]
[332697045,1721453440813,-500.0,0.00014999,2]
[332697046,1721453440822,-510.64557894,0.00014999,2]
[332697047,1721453440831,-323429.82086884,0.00015,2]
[332697048,1721453440842,-730.55933782,0.00015,2]
[332697222,1721453444188,-2759.5004898,0.00015,2]
[332697224,1721453444206,-592.82014659,0.00015,2]
[332697227,1721453444217,-4769.26480063,0.00015,2]
[332697230,1721453444228,-54863.92898905,0.00015,2]
[332697232,1721453444240,-833.37670952,0.00015,2]
[332697235,1721453444251,-307.96302086,0.00015,2]
[332697237,1721453444263,-2279.0,0.00015,2]
[332697239,1721453444273,-537.16417105,0.00015,2]
[332697241,1721453444285,-2925.0,0.00015,2]
[332697242,1721453444296,-1297.84710158,0.00015,2]
[332697243,1721453444375,-1888.0000005,0.00015,2]
[332697244,1721453444387,-487.97190288,0.00015,2]
[332697245,1721453444397,-5680.61466483,0.00015,2]
[332697246,1721453444409,-1728.91551635,0.00015,2]
[332697247,1721453444420,-717.6455124,0.00015,2]
[332697273,1721453446408,-40505.03041319,0.00015,2]
[332697275,1721453446419,-442.00189353,0.00015,2]
[332697278,1721453446442,-3806.86725448,0.00015,2]
[332697280,1721453446453,-42292.43750543,0.00015,2]
[332697284,1721453446524,-305.0,0.00015,2]
[332697285,1721453446535,-298.31787138,0.00015,2]
[332697286,1721453446546,-490.71848072,0.00015,2]
[332697287,1721453446557,-2251.39048209,0.00015,2]
[332697288,1721453446568,-400.57,0.00015,2]
[332697289,1721453446579,-27493.91517875,0.00015,2]
[332697290,1721453446601,-29000.0,0.00015,2]
[332697291,1721453446626,-456.95008335,0.00015,2]
[332697292,1721453446637,-1346.51356479,0.00015,2]
[332697293,1721453446648,-310.0765343,0.00015,2]
[332697294,1721453446659,-18687.90820847,0.00015,2]
[332697295,1721453446670,-929.49487417,0.00015,2]
[332697296,1721453446681,-3075.0,0.00015,2]
[332697297,1721453446692,-852.18109769,0.00015,2]
[332697298,1721453446704,-1200.79804678,0.00015,2]
[332697299,1721453446719,-6148.59999996,0.00015,2]
[332697300,1721453446730,-2864.0000015,0.00015,2]
[332697301,1721453446741,-512.52,0.00015,2]
[332697302,1721453446752,-721.4451556,0.00015,2]
[332697303,1721453446764,-517.68,0.00015,2]
[332697304,1721453446775,-766.84590214,0.00015,2]
[332697305,1721453446786,-1019.50204407,0.00015,2]
[332697306,1721453446809,-602.28545849,0.00015,2]
[332697307,1721453446820,-26977.16239601,0.00015,2]
[332697308,1721453446832,-867.3793,0.00015,2]
[332697309,1721453446843,-386.623,0.00015,2]
[332697310,1721453446853,-519.94092033,0.00015,2]
[332697311,1721453446864,-3598.5206157,0.00015,2]
[332697312,1721453446875,-6545.7621731,0.00015,2]
[332697313,1721453446886,-27062.23784252,0.00015,2]
[332697314,1721453446897,-562.5,0.00015,2]
[332697315,1721453688225,152.86749996,0.0002,10]
[332697332,1721454632263,-853.0,0.000146,2]
[332697333,1721454632274,-849.32266059,0.00014601,2]
[332697334,1721454632283,-2209.911,0.0001465,2]
[332697335,1721454632294,-300.0,0.000147,2]
[332697336,1721454632307,-16235.0,0.00014701,2]
[332697337,1721454632319,-182.02421399,0.000149,2]
[332697338,1721454632328,-179.65590813,0.000149,2]
[332697339,1721454632338,-667.858335,0.000149,2]
[332697340,1721454632347,-36704.36375835,0.0001499,2]
[332697341,1721454632360,-708.08516281,0.0001499,2]
[332697342,1721454632389,-1336.23099749,0.0001499,2]
[332697343,1721454632403,-10267.24643384,0.0001499,2]
[332697344,1721454632415,-401.44091038,0.0001499,2]
[332697345,1721454632426,-750.93154305,0.0001499,2]
[332697346,1721454632443,-3078.55932045,0.0001499,2]
[332697356,1721454637637,-5028.74065588,0.0001499,2]
[332697357,1721454637649,-726.22550044,0.0001499,2]
[332697358,1721454637663,-720.62291816,0.0001499,2]
[332697359,1721454637674,-1315.94695395,0.0001499,2]
[332697360,1721454637687,-3209.94494954,0.0001499,2]
[332697361,1721454637712,-701.89106013,0.0001499,2]
[332697362,1721454637742,-1309.36905882,0.0001499,2]
[332697363,1721454637776,-2400.0,0.0001499,2]
[332697364,1721454637896,-11585.43178871,0.0001499,2]
[332697365,1721454637906,-367.76,0.0001499,2]
[332697366,1721454637916,-367.76,0.0001499,2]
[332697367,1721454637925,-367.76,0.0001499,2]
[332697368,1721454637935,-367.76,0.0001499,2]
[332697369,1721454637944,-367.76,0.0001499,2]
[332697370,1721454637954,-278.67576319,0.00014997,2]
[332697371,1721454637964,-286.34345609,0.00014999,2]
[332697372,1721454637974,-254.74283638,0.00014999,2]
[332697373,1721454637983,-500.0,0.00014999,2]
[332697374,1721454637993,-500.0,0.00014999,2]
[332697375,1721454638002,-500.0,0.00014999,2]
[332697376,1721454638011,-500.0,0.00014999,2]
[332697377,1721454638020,-500.0,0.00014999,2]
[332697378,1721454638031,-331.84647231,0.00014999,2]
[332697379,1721454638040,-1241.32978683,0.00014999,2]
[332697380,1721454638050,-1241.32978683,0.00014999,2]
[332697381,1721454638059,-1241.32978683,0.00014999,2]
[332697382,1721454638069,-1241.32978683,0.00014999,2]
[332697383,1721454638078,-1241.32978683,0.00014999,2]
[332697384,1721454638089,-1241.32978683,0.00014999,2]
[332697385,1721454638099,-1241.32978683,0.00014999,2]
[332697387,1721454638108,-1241.32978683,0.00014999,2]
[332697388,1721454638117,-1241.32978683,0.00014999,2]
[332697389,1721454638126,-1241.32978683,0.00014999,2]
[332697390,1721454638135,-10.86131502,0.00014999,2]
[332697391,1721454638149,-689.05821815,0.00014999,2]
[332697392,1721454638159,-290.95999964,0.00014999,2]
[332697412,1721454639697,-250.45025402,0.00014999,2]
[332697414,1721454639706,-1241.32978683,0.00014999,2]
[332697416,1721454639716,-1241.32978683,0.00014999,2]
[332697418,1721454639726,-1241.32978683,0.00014999,2]
[332697420,1721454639735,-1241.32978683,0.00014999,2]
[332697422,1721454639745,-1241.32978683,0.00014999,2]
[332697424,1721454639754,-1241.32978683,0.00014999,2]
[332697426,1721454639763,-230.9699,0.00014999,2]
[332697428,1721454639775,-328.47396994,0.00014999,2]
[332697430,1721454639786,-681.88591689,0.00014999,2]
[332697432,1721454639796,-1241.32978683,0.00014999,2]
[332697434,1721454639806,-1241.32978683,0.00014999,2]
[332697436,1721454639816,-1241.32978683,0.00014999,2]
[332697438,1721454639827,-817.62864768,0.00014999,2]
[332697441,1721454639842,-423.70113915,0.00014999,2]
[332697443,1721454639852,-1241.32978683,0.00014999,2]
[332697444,1721454639862,-1241.32978683,0.00014999,2]
[332697445,1721454639872,-544.68771201,0.00014999,2]
[332697446,1721454639884,-680.1194976,0.00014999,2]
[332697447,1721454639896,-16.52257722,0.00014999,2]
[332697448,1721454639906,-657.14821373,0.00014999,2]
[332697449,1721454639922,-584.1815731,0.00014999,2]
[332697450,1721454639932,-476.68343237,0.00014999,2]
[332697451,1721454639975,-764.64635446,0.00014999,2]
[332697452,1721454639986,-1241.32978683,0.00014999,2]
[332697453,1721454639996,-1241.32978683,0.00014999,2]
[332697454,1721454640007,-1241.32978683,0.00014999,2]
[332697455,1721454640017,-1241.32978683,0.00014999,2]
[332697456,1721454640027,-1241.32978683,0.00014999,2]
[332697457,1721454640036,-1241.32978683,0.00014999,2]